[Event "Najdorf Memorial-A 2022"]
[Site "Warsaw"]
[Date "2022.07.14"]
[Round "6.2"]
[White "Padalka, Artem"]
[Black "Noe, Christopher"]
[Result "0-1"]
[ECO "B10"]
[WhiteElo "2204"]
[BlackElo "2505"]
[Annotator "ChessBase"]
[PlyCount "78"]
[EventDate "2022.07.09"]
[EventType "swiss"]
[EventCountry "POL"]
[SourceTitle "playchess.com"]
[Source "ChessBase"]
[SourceQuality "1"]
[TimeControl "40/5400+30:1800+30"]

1. e4 {[%emt 0:09:11]} c6 {[%emt 0:00:44]} 2. d3 {[%emt 0:01:13]} d5 {[%emt 0:00:36]} 3. Nd2 {[%emt 0:00:07]} e5 {[%emt 0:06:24]} 4. Ngf3 {[%emt 0:02:29]} Nd7 {[%emt 0:03:07]} 5. g3 {[%emt 0:04:42]} Ngf6 {[%emt 0:01:17]} 6. Bg2 {[%emt 0:00:23]} Bd6 {[%emt 0:04:02]} 7. O-O {[%emt 0:00:24]} O-O {[%emt 0:00:08]} 8. c3 {[%emt 0:22:11]} Re8 {[%emt 0:03:36]} 9. Re1 {[%emt 0:00:37]} Bf8 {[%emt 0:09:44]} 10. Qc2 {[%emt 0:12:54]} Qc7 {[%emt 0:03:30]} 11. Nf1 {[%emt 0:11:24]} b6 {[%emt 0:05:34]} 12. Ne3 {[%emt 0:03:58]} Ba6 {[%emt 0:02:22]} 13. b4 {[%emt 0:03:55]} Bxd3 {[%emt 0:03:59]} 14. Qxd3 {[%emt 0:00:10]} dxe4 {[%emt 0:00:06]} 15. Qc2 {[%emt 0:07:07]} exf3 {[%emt 0:02:25]} 16. Bxf3 {[%emt 0:00:02]} a5 {[%emt 0:02:31]} 17. Rb1 {[%emt 0:01:02]} e4 {[%emt 0:05:14]} 18. Bg2 {[%emt 0:00:04]} Ne5 {[%emt 0:00:54]} 19. Bxe4 {[%emt 0:01:34]} Nxe4 {[%emt 0:00:06]} 20. Qxe4 {[%emt 0:00:06]} Rad8 {[%emt 0:00:28]} 21. Nc2 {[%emt 0:08:33]} Qd7 {[%emt 0:03:08]} 22. Rf1 {[%emt 0:06:47]} f5 {[%emt 0:04:38]} 23. Qe2 {[%emt 0:00:13]} Qd5 {[%emt 0:00:27]} 24. Ne3 {[%emt 0:00:11]} Qe4 {[%emt 0:00:23]} 25. Qc2 {[%emt 0:00:30]} Nf3+ {[%emt 0:05:21]} 26. Kh1 {[%emt 0:00:01]} Rd3 {[%emt 0:00:06]} 27. Ng2 {[%emt 0:01:23]} Red8 {[%emt 0:00:27]} 28. Be3 {[%emt 0:01:09]} h5 {[%emt 0:02:09]} 29. Bxb6 {[%emt 0:00:33]} R8d7 {[%emt 0:06:51]} 30. Qb3+ {[%emt 0:00:22]} Kh7 {[%emt 0:00:25]} 31. bxa5 {[%emt 0:00:35]} h4 {[%emt 0:00:26]} 32. h3 {[%emt 0:00:44]} hxg3 {[%emt 0:05:10]} 33. fxg3 {[%emt 0:00:02]} Rd2 {[%emt 0:00:36]} 34. Bf2 {[%emt 0:00:13]} Bc5 {[%emt 0:00:44]} 35. Rbd1 {[%emt 0:02:27]} Bxf2 {[%emt 0:00:31]} 36. Qb1 {[%emt 0:00:25]} Rxd1 {[%emt 0:01:17]} 37. Rxd1 {[%emt 0:00:08]} Rxd1+ {[%emt 0:00:15]} 38. Qxd1 {[%emt 0:00:02]} Ne1 {[%emt 0:00:33]} 39. Qh5+ {[%emt 0:00:19]} Kg8 {[%emt 0:00:06]} 0-1

[Event "Najdorf Memorial-A 2022"]
[Site "Warsaw"]
[Date "2022.07.14"]
[Round "6.3"]
[White "Musial, Tomasz"]
[Black "Pacan-Milej, Kosma"]
[Result "0-1"]
[ECO "B31"]
[WhiteElo "2131"]
[BlackElo "2412"]
[Annotator "ChessBase"]
[PlyCount "62"]
[EventDate "2022.07.09"]
[EventType "swiss"]
[EventCountry "POL"]
[SourceTitle "playchess.com"]
[Source "ChessBase"]
[SourceQuality "1"]
[TimeControl "40/5400+30:1800+30"]

1. e4 {[%emt 0:00:06]} c5 {[%emt 0:00:10]} 2. Nf3 {[%emt 0:00:13]} Nc6 {[%emt 0:00:06]} 3. Bb5 {[%emt 0:00:41]} g6 {[%emt 0:00:06]} 4. Bxc6 {[%emt 0:00:46]} bxc6 {[%emt 0:00:04]} 5. O-O {[%emt 0:00:22]} Bg7 {[%emt 0:00:32]} 6. Re1 {[%emt 0:00:35]} Nh6 {[%emt 0:01:57]} 7. c3 {[%emt 0:01:24]} O-O {[%emt 0:01:36]} 8. d4 {[%emt 0:00:26]} cxd4 {[%emt 0:00:32]} 9. cxd4 {[%emt 0:00:07]} f6 {[%emt 0:01:57]} 10. Nc3 {[%emt 0:05:51]} d6 {[%emt 0:09:02]} 11. h3 {[%emt 0:05:42]} Nf7 {[%emt 0:00:17]} 12. Be3 {[%emt 0:05:27]} Qa5 {[%emt 0:06:40]} 13. d5 {[%emt 0:07:57]} c5 {[%emt 0:03:13]} 14. Nd2 {[%emt 0:04:33]} Rb8 {[%emt 0:03:14]} 15. Rc1 {[%emt 0:08:39]} f5 {[%emt 0:12:56]} 16. exf5 {[%emt 0:07:57]} Bxf5 {[%emt 0:00:26]} 17. Nc4 {[%emt 0:00:06]} Qb4 {[%emt 0:05:02]} 18. Qe2 {[%emt 0:10:46]} Ne5 {[%emt 0:05:30]} 19. Nxe5 {[%emt 0:00:30]} Bxe5 {[%emt 0:00:05]} 20. Bg5 {[%emt 0:11:08]} Rf7 {[%emt 0:01:22]} 21. g4 {[%emt 0:08:29]} Bd7 {[%emt 0:06:25]} 22. Rc2 {[%emt 0:03:47]} h5 {[%emt 0:10:02]} 23. Qe4 {[%emt 0:02:03]} hxg4 {[%emt 0:01:38]} 24. hxg4 {[%emt 0:02:16]} Bxg4 {[%emt 0:02:08]} 25. Qxb4 {[%emt 0:01:38]} Rxb4 {[%emt 0:01:40]} 26. Ne4 {[%emt 0:03:25]} Bf3 {[%emt 0:01:21]} 27. Ng3 {[%emt 0:00:15]} Bxd5 {[%emt 0:04:47]} 28. Bd2 {[%emt 0:02:45]} Rc4 {[%emt 0:02:18]} 29. Rxc4 {[%emt 0:00:40]} Bxc4 {[%emt 0:00:05]} 30. Bc3 {[%emt 0:00:48]} Bxc3 {[%emt 0:01:54]} 31. bxc3 {[%emt 0:00:05]} Bd3 {[%emt 0:02:39]} 0-1

[Event "Najdorf Memorial-A 2022"]
[Site "Warsaw"]
[Date "2022.07.14"]
[Round "6.3"]
[White "Janeczko, Jakub"]
[Black "Lasota, Adam"]
[Result "1-0"]
[ECO "B00"]
[WhiteElo "2080"]
[BlackElo "1892"]
[Annotator "ChessBase"]
[PlyCount "29"]
[EventDate "2022.07.09"]
[EventType "swiss"]
[EventCountry "POL"]
[SourceTitle "playchess.com"]
[Source "ChessBase"]
[SourceQuality "1"]
[TimeControl "40/5400+30:1800+30"]

1. e4 b6 2. d4 Bb7 3. Nc3 e6 4. a3 Nf6 5. Bd3 c5 6. d5 e5 7. h4 d6 8. g4 Na6 9. g5 Nd7 10. h5 Be7 11. Qg4 Nc7 12. Nf3 Nf8 13. Nh4 Qd7 14. Nf5 O-O-O 15. Nxe7+ 1-0

[Event "Najdorf Memorial-A 2022"]
[Site "Warsaw"]
[Date "2022.07.14"]
[Round "6.4"]
[White "Romanishin, Oleg M"]
[Black "Raczek, Krzysztof"]
[Result "1-0"]
[ECO "E62"]
[WhiteElo "2404"]
[BlackElo "2114"]
[Annotator "ChessBase"]
[PlyCount "93"]
[EventDate "2022.07.09"]
[EventType "swiss"]
[EventCountry "POL"]
[SourceTitle "playchess.com"]
[Source "ChessBase"]
[SourceQuality "1"]
[TimeControl "40/5400+30:1800+30"]

1. d4 {[%emt 0:00:38]} Nf6 {[%emt 0:00:15]} 2. Nf3 {[%emt 0:00:47]} g6 {[%emt 0:00:07]} 3. g3 {[%emt 0:00:13]} Bg7 {[%emt 0:00:08]} 4. Bg2 {[%emt 0:00:26]} O-O {[%emt 0:00:09]} 5. O-O {[%emt 0:02:35]} d6 {[%emt 0:00:08]} 6. c4 {[%emt 0:01:11]} Nc6 {[%emt 0:00:19]} 7. Nc3 {[%emt 0:00:06]} Bf5 {[%emt 0:00:04]} 8. Bd2 {[%emt 0:05:51]} Ne4 {[%emt 0:00:07]} 9. Be1 {[%emt 0:01:16]} e5 {[%emt 0:00:17]} 10. d5 {[%emt 0:15:03]} Nxc3 {[%emt 0:00:10]} 11. Bxc3 {[%emt 0:00:05]} Nb8 {[%emt 0:00:07]} 12. b4 {[%emt 0:05:17]} Re8 {[%emt 0:01:55]} 13. Nd2 {[%emt 0:06:10]} a5 {[%emt 0:09:23]} 14. bxa5 {[%emt 0:00:47]} e4 {[%emt 0:01:52]} 15. Bxg7 {[%emt 0:00:34]} Kxg7 {[%emt 0:00:07]} 16. Nb3 {[%emt 0:07:53]} Na6 {[%emt 0:01:01]} 17. Qd2 {[%emt 0:06:04]} Qf6 {[%emt 0:04:02]} 18. Qe3 {[%emt 0:02:24]} Qe5 {[%emt 0:02:29]} 19. Rac1 {[%emt 0:02:11]} Bd7 {[%emt 0:10:10]} 20. Rfd1 {[%emt 0:06:25]} Ba4 {[%emt 0:01:34]} 21. Rd2 {[%emt 0:04:10]} Bxb3 {[%emt 0:04:44]} 22. axb3 {[%emt 0:00:24]} Nb4 {[%emt 0:03:03]} 23. Rd4 {[%emt 0:09:22]} f5 {[%emt 0:01:11]} 24. c5 {[%emt 0:01:13]} Nxd5 {[%emt 0:00:52]} 25. Qd2 {[%emt 0:00:05]} c6 {[%emt 0:02:06]} 26. e3 {[%emt 0:03:41]} dxc5 {[%emt 0:04:13]} 27. Rxc5 {[%emt 0:00:05]} Qe7 {[%emt 0:00:25]} 28. b4 {[%emt 0:00:31]} Red8 {[%emt 0:00:40]} 29. Bf1 {[%emt 0:05:09]} Nc7 {[%emt 0:18:43]} 30. a6 {[%emt 0:00:23]} Nxa6 {[%emt 0:03:35]} 31. Bxa6 {[%emt 0:00:11]} bxa6 {[%emt 0:00:19]} 32. Rxc6 {[%emt 0:00:36]} Kh6 {[%emt 0:05:47]} 33. Rcd6 {[%emt 0:03:50]} Rxd6 {[%emt 0:00:35]} 34. Rxd6 {[%emt 0:00:06]} Rb8 {[%emt 0:00:18]} 35. Qd4 {[%emt 0:01:18]} Rb7 {[%emt 0:02:52]} 36. h4 {[%emt 0:01:09]} Kh5 {[%emt 0:13:07]} 37. Kg2 {[%emt 0:01:24]} Kh6 {[%emt 0:00:24]} 38. Qc5 {[%emt 0:01:55]} Rc7 {[%emt 0:06:12]} 39. Qd5 {[%emt 0:00:56]} Ra7 {[%emt 0:01:43]} 40. Re6 {[%emt 0:00:00]} Qf7 {[%emt 0:00:00]} 41. Qe5 {[%emt 0:03:45]} Qf8 {[%emt 0:06:44]} 42. Qf4+ {[%emt 0:12:02]} Kg7 {[%emt 0:00:06]} 43. h5 {[%emt 0:00:24]} Qxb4 {[%emt 0:02:44]} 44. Qe5+ {[%emt 0:02:20]} Kg8 {[%emt 0:03:32]} 45. Re8+ {[%emt 0:00:36]} Kf7 {[%emt 0:00:10]} 46. Qe6+ {[%emt 0:00:07]} Kg7 {[%emt 0:00:04]} 47. Rg8+ {[%emt 0:00:08]} 1-0

[Event "Najdorf Memorial-A 2022"]
[Site "Warsaw"]
[Date "2022.07.14"]
[Round "6.4"]
[White "Liberadzki, Slawomir"]
[Black "Lee, Hyuk"]
[Result "0-1"]
[ECO "E81"]
[WhiteElo "2035"]
[BlackElo "1880"]
[Annotator "ChessBase"]
[PlyCount "102"]
[EventDate "2022.07.09"]
[EventType "swiss"]
[EventCountry "POL"]
[SourceTitle "playchess.com"]
[Source "ChessBase"]
[SourceQuality "1"]
[TimeControl "40/5400+30:1800+30"]

1. d4 {[%emt 0:10:24]} Nf6 {[%emt 0:00:19]} 2. c4 {[%emt 0:00:05]} g6 {[%emt 0:00:19]} 3. Nc3 {[%emt 0:00:05]} Bg7 {[%emt 0:00:04]} 4. e4 {[%emt 0:00:06]} d6 {[%emt 0:00:03]} 5. f3 {[%emt 0:00:08]} O-O {[%emt 0:00:06]} 6. Be3 {[%emt 0:00:06]} c5 {[%emt 0:00:03]} 7. Nge2 {[%emt 0:00:59]} Nc6 {[%emt 0:00:31]} 8. Qd2 {[%emt 0:00:49]} Qa5 {[%emt 0:00:05]} 9. g3 {[%emt 0:08:36]} a6 {[%emt 0:01:25]} 10. Bg2 {[%emt 0:09:40]} b5 {[%emt 0:01:36]} 11. cxb5 {[%emt 0:06:55]} axb5 {[%emt 0:00:02]} 12. O-O {[%emt 0:00:38]} b4 {[%emt 0:04:32]} 13. Nd1 {[%emt 0:00:23]} Ba6 {[%emt 0:00:35]} 14. Re1 {[%emt 0:11:51]} Rac8 {[%emt 0:10:40]} 15. Nf2 {[%emt 0:05:39]} Rfd8 {[%emt 0:01:16]} 16. f4 {[%emt 0:08:33]} e6 {[%emt 0:18:23]} 17. a3 {[%emt 0:06:25]} bxa3 {[%emt 0:05:33]} 18. Qxa5 {[%emt 0:01:35]} Nxa5 {[%emt 0:00:01]} 19. Rxa3 {[%emt 0:01:05]} Nc4 {[%emt 0:03:47]} 20. Rxa6 {[%emt 0:00:08]} Nxe3 {[%emt 0:00:02]} 21. e5 {[%emt 0:04:37]} Nfd5 {[%emt 0:04:04]} 22. Ne4 {[%emt 0:02:41]} cxd4 {[%emt 0:03:27]} 23. Nxd6 {[%emt 0:10:58]} Rc2 {[%emt 0:00:01]} 24. Bxd5 {[%emt 0:00:51]} d3 {[%emt 0:16:00]} 25. Nd4 {[%emt 0:00:33]} exd5 {[%emt 0:00:18]} 26. Nxc2 {[%emt 0:02:31]} dxc2 {[%emt 0:00:05]} 27. Rc6 {[%emt 0:00:51]} d4 {[%emt 0:00:17]} 28. Rxe3 {[%emt 0:00:30]} dxe3 {[%emt 0:00:34]} 29. Rxc2 {[%emt 0:00:11]} f6 {[%emt 0:01:20]} 30. e6 {[%emt 0:03:45]} Bf8 {[%emt 0:02:05]} 31. Rc8 {[%emt 0:03:46]} e2 {[%emt 0:00:20]} 32. Kf2 {[%emt 0:00:25]} Rxd6 {[%emt 0:01:46]} 33. Re8 {[%emt 0:00:29]} Rb6 34. e7 e1=Q+ {[%emt 0:02:40]} 35. Kxe1 {[%emt 0:00:58]} Re6+ {[%emt 0:00:01]} 36. Kf2 {[%emt 0:00:39]} Rxe7 {[%emt 0:00:01]} 37. Rxe7 {[%emt 0:00:22]} Bxe7 {[%emt 0:00:00]} 38. Ke3 {[%emt 0:00:14]} Kf7 {[%emt 0:00:35]} 39. Ke4 {[%emt 0:00:30]} Ke6 {[%emt 0:00:30]} 40. g4 {[%emt 0:00:00]} f5+ {[%emt 0:00:00]} 41. gxf5+ {[%emt 0:00:46]} gxf5+ {[%emt 0:02:11]} 42. Kd3 {[%emt 0:00:35]} Kd5 {[%emt 0:00:26]} 43. b3 {[%emt 0:00:05]} h5 {[%emt 0:00:17]} 44. Ke3 {[%emt 0:00:24]} h4 {[%emt 0:01:11]} 45. Kd3 {[%emt 0:02:05]} Bc5 {[%emt 0:00:24]} 46. Kc3 {[%emt 0:00:41]} Ke4 {[%emt 0:00:09]} 47. Kc4 {[%emt 0:00:08]} Bg1 {[%emt 0:00:09]} 48. h3 {[%emt 0:00:21]} Kxf4 {[%emt 0:00:05]} 49. b4 {[%emt 0:00:19]} Kg3 {[%emt 0:00:08]} 50. b5 {[%emt 0:00:29]} Kxh3 {[%emt 0:00:10]} 51. Kd5 {[%emt 0:00:30]} Kg2 {[%emt 0:00:09]} 0-1

[Event "Najdorf Memorial-A 2022"]
[Site "Warsaw"]
[Date "2022.07.14"]
[Round "6.5"]
[White "Praczukowski, Stanislaw"]
[Black "Danielyan, Vahe"]
[Result "1-0"]
[ECO "E15"]
[WhiteElo "2055"]
[BlackElo "2295"]
[Annotator "ChessBase"]
[PlyCount "93"]
[EventDate "2022.07.09"]
[EventType "swiss"]
[EventCountry "POL"]
[SourceTitle "playchess.com"]
[Source "ChessBase"]
[SourceQuality "1"]
[TimeControl "40/5400+30:1800+30"]

1. d4 {[%emt 0:00:04]} Nf6 {[%emt 0:00:09]} 2. c4 {[%emt 0:00:11]} e6 {[%emt 0:00:06]} 3. Nf3 {[%emt 0:00:14]} b6 {[%emt 0:00:06]} 4. g3 {[%emt 0:00:51]} Ba6 {[%emt 0:00:32]} 5. b3 {[%emt 0:00:12]} Bb4+ {[%emt 0:01:05]} 6. Bd2 {[%emt 0:00:24]} Be7 {[%emt 0:00:06]} 7. Nc3 {[%emt 0:00:57]} d5 {[%emt 0:00:24]} 8. cxd5 {[%emt 0:04:35]} exd5 {[%emt 0:00:05]} 9. Bg2 {[%emt 0:01:25]} O-O {[%emt 0:00:06]} 10. O-O {[%emt 0:01:24]} Re8 {[%emt 0:00:04]} 11. Re1 {[%emt 0:09:19]} Bb7 {[%emt 0:00:42]} 12. Qc2 {[%emt 0:07:40]} Na6 {[%emt 0:00:16]} 13. a3 {[%emt 0:12:24]} c5 {[%emt 0:01:53]} 14. Nb5 {[%emt 0:15:26]} cxd4 {[%emt 0:05:34]} 15. b4 {[%emt 0:04:09]} Ne4 {[%emt 0:01:48]} 16. Nbxd4 {[%emt 0:01:56]} Bf6 {[%emt 0:02:14]} 17. Rac1 {[%emt 0:02:31]} Rc8 {[%emt 0:02:40]} 18. Qd3 {[%emt 0:01:02]} Rc4 {[%emt 0:00:15]} 19. Be3 {[%emt 0:01:58]} Nc7 {[%emt 0:09:32]} 20. Rxc4 {[%emt 0:18:20]} dxc4 {[%emt 0:00:04]} 21. Qxc4 {[%emt 0:00:12]} Nd5 {[%emt 0:00:12]} 22. Bc1 {[%emt 0:02:35]} Qd7 {[%emt 0:00:10]} 23. Bb2 {[%emt 0:01:55]} g5 {[%emt 0:01:41]} 24. Qd3 {[%emt 0:03:56]} Nxf2 {[%emt 0:07:40]} 25. Kxf2 {[%emt 0:01:46]} Ne3 {[%emt 0:00:05]} 26. h3 {[%emt 0:04:39]} Nxg2 {[%emt 0:07:28]} 27. Kxg2 {[%emt 0:03:00]} Be4 28. Qc3 {[%emt 0:00:51]} h5 {[%emt 0:02:18]} 29. Kf2 {[%emt 0:00:30]} Qxh3 {[%emt 0:01:25]} 30. Rg1 {[%emt 0:00:27]} g4 {[%emt 0:01:44]} 31. Nh4 {[%emt 0:00:29]} Qh2+ {[%emt 0:03:37]} 32. Ng2 {[%emt 0:00:35]} Re5 {[%emt 0:05:01]} 33. Qc8+ {[%emt 0:00:29]} Kg7 {[%emt 0:00:08]} 34. Kf1 {[%emt 0:00:30]} Rd5 {[%emt 0:03:44]} 35. e3 {[%emt 0:00:28]} Bxg2+ {[%emt 0:03:50]} 36. Rxg2 {[%emt 0:00:11]} Qh1+ {[%emt 0:00:05]} 37. Rg1 {[%emt 0:00:43]} Qe4 {[%emt 0:00:17]} 38. Qc1 {[%emt 0:00:37]} Kh7 {[%emt 0:00:59]} 39. Rg2 {[%emt 0:00:19]} Be5 {[%emt 0:03:34]} 40. Kg1 {[%emt 0:00:00]} f5 {[%emt 0:00:00]} 41. a4 {[%emt 0:18:14]} h4 {[%emt 0:01:41]} 42. gxh4 {[%emt 0:01:39]} g3 {[%emt 0:00:04]} 43. Rc2 {[%emt 0:02:39]} Rd7 {[%emt 0:04:56]} 44. Ba1 {[%emt 0:05:59]} f4 {[%emt 0:02:38]} 45. Ne6 {[%emt 0:00:56]} Qxe3+ {[%emt 0:05:48]} 46. Qxe3 {[%emt 0:00:46]} fxe3 {[%emt 0:01:57]} 47. Nf8+ {[%emt 0:00:27]} 1-0

[Event "Najdorf Memorial-A 2022"]
[Site "Warsaw"]
[Date "2022.07.14"]
[Round "6.5"]
[White "Celinski, Kamil"]
[Black "Goraj, Barbara"]
[Result "1-0"]
[ECO "B30"]
[WhiteElo "1876"]
[BlackElo "2035"]
[Annotator "ChessBase"]
[PlyCount "63"]
[EventDate "2022.07.09"]
[EventType "swiss"]
[EventCountry "POL"]
[SourceTitle "playchess.com"]
[Source "ChessBase"]
[SourceQuality "1"]
[TimeControl "40/5400+30:1800+30"]

1. e4 {[%emt 0:00:07]} c5 {[%emt 0:00:08]} 2. Nf3 {[%emt 0:00:04]} Nc6 {[%emt 0:00:10]} 3. Bb5 {[%emt 0:00:03]} e5 {[%emt 0:00:48]} 4. O-O {[%emt 0:00:06]} Bd6 {[%emt 0:00:07]} 5. c3 {[%emt 0:00:11]} a6 {[%emt 0:00:44]} 6. Ba4 {[%emt 0:00:34]} b5 {[%emt 0:00:26]} 7. Bc2 {[%emt 0:00:19]} Nge7 {[%emt 0:01:00]} 8. d4 {[%emt 0:00:49]} cxd4 {[%emt 0:00:51]} 9. cxd4 {[%emt 0:00:15]} exd4 {[%emt 0:00:25]} 10. Bb3 {[%emt 0:07:07]} O-O {[%emt 0:09:42]} 11. Nxd4 {[%emt 0:01:02]} Nxd4 {[%emt 0:03:29]} 12. Qxd4 {[%emt 0:00:08]} Qc7 {[%emt 0:00:12]} 13. h3 {[%emt 0:02:50]} b4 {[%emt 0:23:58]} 14. Be3 {[%emt 0:22:03]} a5 {[%emt 0:07:39]} 15. a3 {[%emt 0:13:56]} Be5 {[%emt 0:10:09]} 16. Qd2 {[%emt 0:05:01]} bxa3 {[%emt 0:05:18]} 17. Rxa3 {[%emt 0:06:35]} Rb8 {[%emt 0:00:38]} 18. Rd1 {[%emt 0:19:21]} a4 {[%emt 0:13:32]} 19. Bxa4 {[%emt 0:04:18]} Rxb2 {[%emt 0:00:17]} 20. Qd3 {[%emt 0:02:17]} d5 {[%emt 0:00:57]} 21. Nc3 {[%emt 0:04:29]} dxe4 {[%emt 0:02:42]} 22. Nxe4 {[%emt 0:00:56]} Bf5 {[%emt 0:01:17]} 23. Bb3 {[%emt 0:04:40]} Qc6 {[%emt 0:04:02]} 24. f3 {[%emt 0:01:23]} Qg6 {[%emt 0:02:16]} 25. Bf2 {[%emt 0:02:03]} Bxh3 {[%emt 0:00:43]} 26. g3 {[%emt 0:01:46]} Bf5 {[%emt 0:01:04]} 27. Ra7 {[%emt 0:00:43]} Nc6 {[%emt 0:06:37]} 28. Rxf7 {[%emt 0:00:26]} Nd4 {[%emt 0:04:36]} 29. Bxd4 {[%emt 0:00:43]} Qxg3+ {[%emt 0:00:41]} 30. Nxg3 {[%emt 0:00:10]} Bxd3 {[%emt 0:00:03]} 31. Rxf8+ {[%emt 0:00:09]} Kxf8 {[%emt 0:00:05]} 32. Bxb2 {[%emt 0:00:07]} 1-0

[Event "Najdorf Memorial-A 2022"]
[Site "Warsaw"]
[Date "2022.07.14"]
[Round "6.6"]
[White "Chomczyk, Marek"]
[Black "Kaczmarek, Arkadiusz"]
[Result "1-0"]
[ECO "B23"]
[WhiteElo "2290"]
[BlackElo "2147"]
[Annotator "ChessBase"]
[PlyCount "145"]
[EventDate "2022.07.09"]
[EventType "swiss"]
[EventCountry "POL"]
[SourceTitle "playchess.com"]
[Source "ChessBase"]
[SourceQuality "1"]
[TimeControl "40/5400+30:1800+30"]

1. e4 {[%emt 0:00:03]} c5 {[%emt 0:00:14]} 2. Nc3 {[%emt 0:00:14]} e6 {[%emt 0:00:23]} 3. Nf3 {[%emt 0:00:05]} a6 {[%emt 0:00:22]} 4. g3 {[%emt 0:00:08]} Nc6 {[%emt 0:00:26]} 5. Bg2 {[%emt 0:00:52]} Nf6 {[%emt 0:00:31]} 6. d4 {[%emt 0:00:26]} cxd4 {[%emt 0:01:13]} 7. Nxd4 {[%emt 0:00:04]} Qc7 {[%emt 0:04:20]} 8. O-O {[%emt 0:05:02]} d6 {[%emt 0:01:05]} 9. Nxc6 {[%emt 0:05:29]} bxc6 {[%emt 0:00:24]} 10. Na4 {[%emt 0:00:10]} Bb7 {[%emt 0:07:38]} 11. c4 {[%emt 0:11:36]} c5 {[%emt 0:02:29]} 12. Re1 {[%emt 0:00:19]} Be7 {[%emt 0:13:07]} 13. b3 {[%emt 0:04:42]} O-O {[%emt 0:12:10]} 14. Bb2 {[%emt 0:02:14]} Bc6 {[%emt 0:09:10]} 15. e5 {[%emt 0:09:42]} dxe5 {[%emt 0:02:11]} 16. Bxe5 {[%emt 0:00:08]} Qb7 {[%emt 0:00:27]} 17. Bxc6 {[%emt 0:01:48]} Qxc6 {[%emt 0:00:15]} 18. Qe2 {[%emt 0:00:06]} Rfd8 {[%emt 0:03:58]} 19. Rad1 {[%emt 0:01:01]} Rxd1 {[%emt 0:11:55]} 20. Rxd1 {[%emt 0:01:05]} Rd8 {[%emt 0:00:14]} 21. Rxd8+ {[%emt 0:00:56]} Bxd8 {[%emt 0:00:31]} 22. f3 {[%emt 0:07:03]} Nd7 {[%emt 0:05:29]} 23. Qd3 {[%emt 0:03:37]} Be7 {[%emt 0:00:52]} 24. Bc3 {[%emt 0:03:44]} f5 {[%emt 0:04:25]} 25. Kf2 {[%emt 0:06:38]} Kf7 {[%emt 0:01:13]} 26. Qe3 {[%emt 0:01:38]} h6 {[%emt 0:05:37]} 27. Nb2 {[%emt 0:01:08]} Bd6 {[%emt 0:05:05]} 28. Nd3 {[%emt 0:01:27]} Be7 {[%emt 0:02:56]} 29. Ke2 {[%emt 0:05:18]} Bf6 {[%emt 0:04:22]} 30. Bxf6 {[%emt 0:01:26]} Kxf6 {[%emt 0:00:14]} 31. Qf4 {[%emt 0:04:39]} g5 {[%emt 0:00:30]} 32. Qd2 {[%emt 0:00:05]} Kg6 {[%emt 0:02:10]} 33. Qa5 {[%emt 0:01:06]} e5 {[%emt 0:00:25]} 34. Qd8 {[%emt 0:00:19]} Kg7 {[%emt 0:00:36]} 35. Qe7+ {[%emt 0:00:19]} Kg8 {[%emt 0:00:13]} 36. Nxe5 {[%emt 0:01:04]} Nxe5 37. Qxe5 {[%emt 0:00:05]} Qc8 {[%emt 0:01:00]} 38. Qf6 {[%emt 0:03:17]} Kh7 {[%emt 0:00:42]} 39. Qf7+ {[%emt 0:00:05]} Kh8 {[%emt 0:00:08]} 40. Qg6 {[%emt 0:00:00]} Qf8 {[%emt 0:00:00]} 41. Qxa6 {[%emt 0:06:12]} Qe7+ {[%emt 0:02:26]} 42. Kf2 {[%emt 0:00:33]} Kg7 {[%emt 0:00:19]} 43. Qa5 {[%emt 0:00:10]} Qe5 {[%emt 0:01:16]} 44. Qd2 {[%emt 0:00:10]} f4 45. gxf4 gxf4 {[%emt 0:06:41]} 46. a4 {[%emt 0:01:56]} Kg6 {[%emt 0:06:43]} 47. a5 {[%emt 0:01:19]} Qa1 {[%emt 0:00:48]} 48. Kg2 {[%emt 0:00:49]} Qf6 {[%emt 0:02:14]} 49. Qd3+ {[%emt 0:01:49]} Kg7 {[%emt 0:02:22]} 50. Qd7+ {[%emt 0:01:51]} Kg6 {[%emt 0:01:31]} 51. Qg4+ {[%emt 0:00:04]} Kh7 {[%emt 0:00:58]} 52. Kh3 {[%emt 0:00:22]} Qa1 {[%emt 0:06:25]} 53. Qf5+ {[%emt 0:00:32]} Kg7 {[%emt 0:00:13]} 54. Qxc5 {[%emt 0:01:27]} Qf1+ {[%emt 0:00:43]} 55. Kg4 {[%emt 0:00:07]} Qg2+ {[%emt 0:00:11]} 56. Kxf4 {[%emt 0:00:05]} Qxh2+ {[%emt 0:00:16]} 57. Ke4 {[%emt 0:00:08]} Qc2+ {[%emt 0:02:05]} 58. Kd5 {[%emt 0:01:09]} Qxb3 {[%emt 0:01:25]} 59. Qc7+ {[%emt 0:00:40]} Kg8 {[%emt 0:00:18]} 60. Qd8+ {[%emt 0:01:52]} Kf7 {[%emt 0:01:03]} 61. Qd7+ {[%emt 0:00:18]} Kf6 {[%emt 0:00:48]} 62. Qe6+ {[%emt 0:00:07]} Kg7 {[%emt 0:01:08]} 63. Qe5+ {[%emt 0:00:26]} Kf7 {[%emt 0:00:32]} 64. Qf5+ {[%emt 0:00:08]} Ke7 {[%emt 0:01:22]} 65. Qe6+ {[%emt 0:00:03]} Kf8 {[%emt 0:01:14]} 66. Qxh6+ {[%emt 0:00:05]} Ke7 {[%emt 0:00:36]} 67. Qe6+ {[%emt 0:01:18]} Kf8 {[%emt 0:00:03]} 68. a6 {[%emt 0:01:08]} Qxf3+ {[%emt 0:00:21]} 69. Kd6 {[%emt 0:01:04]} Qa3+ {[%emt 0:00:36]} 70. Kd7 {[%emt 0:00:13]} Qa4+ {[%emt 0:00:31]} 71. Qc6 {[%emt 0:00:04]} Qa5 {[%emt 0:01:02]} 72. Qf6+ {[%emt 0:01:26]} Kg8 {[%emt 0:00:14]} 73. Qd8+ {[%emt 0:00:04]} 1-0